fUST/lending_fUST_20260308
["ID","MTS","AMOUNT","RATE_DAILY","PERIOD"]
[407968757,1772948313847,-1000.0,5.699e-05,2]
[407968758,1772948314765,-2000.0,5.699e-05,2]
[407968759,1772948315860,-2000.0,5.699e-05,2]
[407968760,1772948403444,-2000.0,5.642e-05,2]
[407968761,1772948404861,-2000.0,5.642e-05,2]
[407968762,1772948405837,-1000.0,5.642e-05,2]
[407968763,1772948405859,-502.0,5.642e-05,2]
[407968764,1772948405881,-182.84364668,5.657e-05,2]
[407968765,1772948405902,-315.15635332,5.673e-05,2]
[407968766,1772948406714,-184.89404524,5.673e-05,2]
[407968767,1772948406737,-500.16506819,5.673e-05,2]
[407968768,1772948406759,-186.78548273,5.673e-05,2]
[407968769,1772948406781,-456.9095799,5.673e-05,2]
[407968770,1772948406803,-501.51721363,5.673e-05,2]
[407968771,1772948406825,-169.72861031,5.673e-05,2]
[407968772,1772948407953,-452.6920094,5.673e-05,2]
[407968773,1772948407972,-500.80269293,5.673e-05,2]
[407968774,1772948407994,-500.94767083,5.673e-05,2]
[407968775,1772948408014,-500.06815864,5.673e-05,2]
[407968776,1772948408035,-45.4894682,5.673e-05,2]
[407968777,1772948538840,-2000.0,5.616e-05,2]
[407968778,1772948539786,-2000.0,5.616e-05,2]
[407968779,1772948540707,-1000.0,5.616e-05,2]
[407968780,1772948540734,-500.0593083,5.673e-05,2]
[407968781,1772948540758,-499.9406917,5.673e-05,2]
[407968782,1772948541711,-0.7362005,5.673e-05,2]
[407968783,1772948541732,-500.545581,5.673e-05,2]
[407968784,1772948541754,-270.60729949,5.673e-05,2]
[407968785,1772948541775,-454.70425769,5.673e-05,2]
[407968786,1772948541797,-773.40666132,5.684e-05,2]
[407968787,1772948543225,-2000.0,5.684e-05,2]
[407968788,1772948632524,-2000.0,5.571e-05,2]
[407968789,1772948633529,-2000.0,5.627e-05,2]
[407968790,1772948634511,-2000.0,5.627e-05,2]
[407968791,1772948635450,-1000.0,5.627e-05,2]
[407968792,1772948635476,-1000.0,5.684e-05,2]
[407968793,1772948636474,-2000.0,5.684e-05,2]
[407968803,1772948776026,-650.65233403,5.488e-05,2]
[407968804,1772948776049,-1349.34766597,5.543e-05,2]
[407968805,1772948777119,-2000.0,5.543e-05,2]
[407968806,1772948778332,-1650.65233403,5.543e-05,2]
[407968807,1772948778356,-349.34766597,5.573e-05,2]
[407968808,1772948779506,-150.73888092,5.573e-05,2]
[407968809,1772948779528,-500.0,5.573e-05,2]
[407968810,1772948779550,-501.9022056,5.573e-05,2]
[407968811,1772948779573,-500.36162265,5.573e-05,2]
[407968812,1772948779599,-346.99729083,5.599e-05,2]
[407968813,1772948781113,-2000.0,5.517e-05,2]
[407968816,1772948860471,-565.22344284,5.407e-05,2]
[407968817,1772948860494,-1434.77655716,5.462e-05,2]
[407968818,1772948861653,-2000.0,5.462e-05,2]
[407968819,1772948866905,-1000.0,5.462e-05,2]
[407968934,1772949036193,-469.74779629,5.4e-05,2]
[407968935,1772949036204,-1549.21067812,5.4e-05,2]
[407968964,1772949037635,-2681.07152559,5.4e-05,2]
[407968966,1772949037645,-5000.0,5.407e-05,2]
[407968968,1772949037654,-186.85227563,5.435e-05,2]
[407968970,1772949037665,-4434.77655716,5.462e-05,2]
[407968973,1772949037675,-500.0,5.573e-05,2]
[407968975,1772949037684,-500.0,5.573e-05,2]
[407968977,1772949037694,-500.0,5.573e-05,2]
[407968980,1772949037703,-500.0,5.573e-05,2]
[407968982,1772949037714,-340.32834654,5.58e-05,2]
[407968984,1772949037725,-729.57017722,5.58e-05,2]
[407968986,1772949037735,-1161.11733999,5.599e-05,2]
[407968988,1772949037746,-943.065,5.599e-05,2]
[407969298,1772949040826,-318.05165154,5.543e-05,2]
[407969504,1772949042783,-585.75366434,5.543e-05,2]
[407969775,1772949045736,-3706.42578254,5.488e-05,2]
[407969782,1772949045794,-1293.57421746,5.488e-05,2]
[407969785,1772949045804,-6815.35427033,5.543e-05,2]
[407969787,1772949045814,-42112.8850468,5.599e-05,2]
[407969789,1772949045825,-158640.77043913,5.599e-05,2]
[407970455,1772950083646,192.61,3.8e-06,2]
[407970478,1772950231650,-1785.36217856,4.129e-05,2]
[407970480,1772950231662,-357.92300043,4.129e-05,2]
[407970483,1772950231683,-1563.14060355,4.129e-05,2]
[407970485,1772950231692,-144.37955628,4.171e-05,2]
[407970487,1772950231703,-2192.77639123,4.171e-05,2]
[407970604,1772950237837,-2662.84405249,4.171e-05,2]
[407970606,1772950237847,-214.5173838,4.213e-05,2]
[407970608,1772950237857,-1680.12722241,4.577e-05,2]
[407970610,1772950237867,-188.11805223,4.741e-05,2]
[407970612,1772950237876,-205.870212,4.911e-05,2]
[407970614,1772950237886,-205.870212,5.118e-05,2]
[407970616,1772950237896,-161.53526232,5.202e-05,2]
[407970618,1772950237906,-205.870212,5.324e-05,2]
[407970620,1772950237915,-551.64470848,5.503e-05,2]
[407970622,1772950237925,-500.0,5.503e-05,2]
[407970624,1772950237934,-168.68533582,5.503e-05,2]
[407970626,1772950237944,-166.70001022,5.503e-05,2]
[407970628,1772950237953,-266.05949309,5.503e-05,2]
[407970630,1772950237962,-219.46781864,5.503e-05,2]
[407970632,1772950237972,-320.5377908,5.503e-05,2]
[407970634,1772950237982,-500.18911387,5.503e-05,2]
[407970636,1772950237991,-500.04740192,5.503e-05,2]
[407970638,1772950238000,-500.22029445,5.503e-05,2]
[407970640,1772950238009,-500.0,5.503e-05,2]
[407970642,1772950238019,-500.0,5.503e-05,2]
[407970644,1772950238029,-500.44713673,5.503e-05,2]
[407970646,1772950238039,-473.23931126,5.503e-05,2]
[407970648,1772950238049,-500.0,5.503e-05,2]
[407970650,1772950238058,-276.79875053,5.503e-05,2]
[407970652,1772950238068,-500.0,5.503e-05,2]
[407970654,1772950238077,-500.0,5.503e-05,2]
[407970656,1772950238087,-500.15019879,5.503e-05,2]
[407970658,1772950238096,-500.0,5.503e-05,2]
[407970660,1772950238105,-500.0,5.503e-05,2]
[407970662,1772950238114,-500.0,5.503e-05,2]
[407970664,1772950238124,-500.0,5.503e-05,2]
[407970666,1772950238134,-500.0,5.503e-05,2]
[407970668,1772950238144,-500.0,5.503e-05,2]
[407970670,1772950238153,-528.16651909,5.503e-05,2]
[407970672,1772950238162,-500.0,5.503e-05,2]
[407970674,1772950238171,-500.0,5.503e-05,2]
[407970676,1772950238180,-500.0,5.503e-05,2]
[407970678,1772950238190,-500.0,5.503e-05,2]
[407970680,1772950238199,-500.29794658,5.503e-05,2]
[407970682,1772950238209,-500.29238211,5.503e-05,2]
[407970684,1772950238218,-162.31955342,5.503e-05,2]
[407970686,1772950238227,-500.0,5.503e-05,2]
[407970688,1772950238236,-263.20722325,5.503e-05,2]
[407970690,1772950238245,-500.0,5.503e-05,2]
[407970692,1772950238255,-29749.20601686,5.528e-05,2]
[407970695,1772950238267,-3233.56746409,5.528e-05,2]
[407970770,1772950245930,-1680.12722241,5.473e-05,2]
[407970803,1772951431799,-304.45,4.377e-05,2]
[407970805,1772951431810,-773.63916142,4.421e-05,2]
[407970806,1772951431822,-4226.36083858,4.421e-05,2]
[407970807,1772951431832,-165.174054,4.465e-05,2]
[407970808,1772951431842,-195.46728233,4.845e-05,2]
[407970809,1772951431852,-1068.0,5.329e-05,2]
[407970810,1772951431863,-300.0,5.33e-05,2]
[407970811,1772951431872,-6900.81588605,5.331e-05,2]
[407970812,1772951431884,-4885.23839631,5.331e-05,2]
[407970813,1772951431913,-548.37951576,5.331e-05,2]
[407970814,1772951431926,-305.32307124,5.331e-05,2]
[407970815,1772951431937,-276.36,5.331e-05,2]
[407970816,1772951431950,-997.32222237,5.331e-05,2]
[407970817,1772951431963,-9431.16849423,5.331e-05,2]
[407970876,1772951440584,-443.13531504,5.278e-05,2]
[407971079,1772951443064,-658.83621924,5.278e-05,2]
[407971080,1772951443078,-1522.895,5.278e-05,2]
[407971081,1772951443090,-382.35591491,5.278e-05,2]
[407971086,1772951446318,-290.0,5.225e-05,2]
[407971087,1772951446328,-1992.77755081,5.278e-05,2]
[407971088,1772951446337,-1594.29791673,5.331e-05,2]
[407971089,1772951446349,-1322.16892241,5.331e-05,2]
[407971090,1772951446358,-1257.8656633,5.331e-05,2]
[407971091,1772951446367,-500.0,5.503e-05,2]
[407971092,1772951446376,-500.0,5.503e-05,2]
[407971093,1772951446386,-500.0,5.503e-05,2]
[407971094,1772951446395,-500.0,5.503e-05,2]
[407971095,1772951446404,-160.44556469,5.503e-05,2]
[407971096,1772951446413,-500.0,5.503e-05,2]
[407971097,1772951446423,-542.10044621,5.503e-05,2]
[407971098,1772951446432,-501.72712975,5.503e-05,2]
[407971099,1772951446441,-500.0,5.503e-05,2]
[407971100,1772951446450,-26870.31647362,5.527e-05,2]
[407971101,1772951446461,-10071.15168208,5.527e-05,2]
[407971116,1772951883359,226.16,3.8e-06,2]
[407971153,1772952567402,79742.95513947,0.000114,120]
[407971178,1772952632059,-2164.65562877,4.36e-05,2]
[407971179,1772952632069,-517.67516527,4.404e-05,2]
[407971180,1772952632080,-4482.32483473,4.404e-05,2]
[407971181,1772952632090,-4004.65952297,4.448e-05,2]
[407971222,1772952638262,-995.34047703,4.448e-05,2]
[407971224,1772952638272,-196.45797215,4.516e-05,2]
[407971225,1772952638282,-290.0,4.583e-05,2]
[407971227,1772952638292,-161.207296,4.63e-05,2]
[407971229,1772952638302,-161.207296,4.874e-05,2]
[407971232,1772952638311,-161.207296,5.117e-05,2]
[407971234,1772952638320,-4013.76226356,5.2e-05,2]
[407971236,1772952638329,-9923.94024674,5.2e-05,2]
[407971238,1772952638338,-780.57107985,5.2e-05,2]
[407972053,1772952646253,-1874.65562877,5.066e-05,2]
[407972920,1772952672710,174.0,3.1e-07,2]
[407972921,1772952673774,174.0,3.1e-07,2]
[407972922,1772952675399,174.0,3.1e-07,2]
[407972923,1772952675931,174.0,3.1e-07,2]
[407972943,1772953683859,259.12,3.8e-06,2]
[407972973,1772953832177,-5000.0,4.143e-05,2]
[407972975,1772953832187,-1987.33251801,4.185e-05,2]
[407972977,1772953832196,-2449.27386571,4.227e-05,2]
[407973026,1772953838359,-2550.72613429,4.227e-05,2]
[407973028,1772953838370,-300.0,4.269e-05,2]
[407973029,1772953838379,-202.9972485,4.292e-05,2]
[407973030,1772953838389,-286.0,4.356e-05,2]
[407973031,1772953838398,-500.47644382,4.953e-05,2]
[407973032,1772953838408,-500.0,4.953e-05,2]
[407973033,1772953838417,-500.06087709,4.953e-05,2]
[407973034,1772953838426,-500.0,4.953e-05,2]
[407973035,1772953838435,-501.14108406,4.953e-05,2]
[407973036,1772953838444,-500.0,4.953e-05,2]
[407973037,1772953838454,-500.27991985,4.953e-05,2]
[407973038,1772953838463,-500.0,4.953e-05,2]
[407973039,1772953838472,-500.0,4.953e-05,2]
[407973040,1772953838481,-500.0,4.953e-05,2]
[407973041,1772953838490,-500.0,4.953e-05,2]
[407973042,1772953838500,-500.0,4.953e-05,2]
[407973043,1772953838508,-500.0,4.953e-05,2]
[407973044,1772953838517,-211.89633785,4.953e-05,2]
[407973045,1772953838526,-500.0,4.953e-05,2]
[407973046,1772953838535,-500.0,4.953e-05,2]
[407973047,1772953838545,-500.0,4.953e-05,2]
[407973048,1772953838554,-500.0,4.953e-05,2]
[407973049,1772953838563,-500.0,4.953e-05,2]
[407973050,1772953838572,-500.27755359,4.953e-05,2]
[407973051,1772953838581,-500.17224399,4.953e-05,2]
[407973052,1772953838591,-500.0,4.953e-05,2]
[407973053,1772953838600,-447.37246053,4.953e-05,2]
[407973054,1772953838611,-52.62753947,4.953e-05,2]
[407973055,1772953838620,-500.0,4.953e-05,2]
[407973056,1772953838629,-500.0,4.953e-05,2]
[407973057,1772953838638,-500.0,4.953e-05,2]
[407973058,1772953838647,-500.0,4.953e-05,2]
[407973059,1772953838656,-511.71061417,4.953e-05,2]
[407973060,1772953838666,-5639.9688076,4.96e-05,2]
[407973061,1772953838674,-11808.53904304,4.973e-05,2]
[407973062,1772953838685,-3570.83799964,4.973e-05,2]
[407973101,1772953840707,-1153.09283024,4.973e-05,2]
[407973225,1772953843507,-793.3533915,4.973e-05,2]
[407973226,1772953843519,-287.5135445,4.973e-05,2]
[407973227,1772953843563,-11074.39,4.973e-05,2]
[407973228,1772953843574,-2149.33,4.973e-05,2]
[407973231,1772953846871,-30162.14510174,4.973e-05,2]
[407973232,1772953846882,-494.293216,4.973e-05,2]
[407973233,1772953846893,-281.58,4.973e-05,2]
[407973234,1772953846904,-13197.75447007,4.973e-05,2]
[407973241,1772955024817,-1960.06198656,3.977e-05,2]
[407973266,1772955032397,-3039.93801344,3.977e-05,2]
[407973268,1772955032407,-3540.35588159,4.017e-05,2]
[407973274,1772955032458,-1347.05652906,4.017e-05,2]
[407973361,1772955038798,-112.58758935,4.017e-05,2]
[407973363,1772955038809,-180.731478,4.058e-05,2]
[407973365,1772955038818,-24.64365386,4.229e-05,2]
[407973367,1772955038828,-156.08782414,4.229e-05,2]
[407973369,1772955038837,-300.0,4.387e-05,2]
[407973371,1772955038846,-300.0,4.387e-05,2]
[407973373,1772955038855,-180.731478,4.4e-05,2]
[407973375,1772955038864,-428.57635609,4.456e-05,2]
[407973377,1772955038874,-203.83439916,4.5e-05,2]
[407973379,1772955038883,-180.731478,4.571e-05,2]
[407973381,1772955038892,-500.0,4.733e-05,2]
[407973383,1772955038902,-500.52279517,4.733e-05,2]
[407973385,1772955038912,-223.86428045,4.733e-05,2]
[407973387,1772955038920,-454.411262,4.733e-05,2]
[407973608,1772955041126,-45.588738,4.733e-05,2]
[407973610,1772955041136,-500.0,4.733e-05,2]
[407973612,1772955041145,-500.0,4.733e-05,2]
[407973614,1772955041154,-500.0,4.733e-05,2]
[407973616,1772955041163,-500.0,4.733e-05,2]
[407973618,1772955041172,-500.0,4.733e-05,2]
[407973620,1772955041181,-500.0,4.733e-05,2]
[407973622,1772955041190,-500.0,4.733e-05,2]
[407973624,1772955041200,-623.01546659,4.733e-05,2]
[407973626,1772955041209,-500.0,4.733e-05,2]
[407973628,1772955041218,-500.0,4.733e-05,2]
[407973630,1772955041227,-500.0,4.733e-05,2]
[407973632,1772955041236,-155.60699957,4.733e-05,2]
[407973634,1772955041245,-180.731478,4.741e-05,2]
[407973636,1772955041254,-1075.35731784,4.75e-05,2]
[407973638,1772955041265,-868.11586157,4.75e-05,2]
[407973640,1772955041276,-1091.36838747,4.75e-05,2]
[407973642,1772955041291,-1000.0,4.75e-05,2]
[407973891,1772955043639,-1104.68933594,4.75e-05,2]
[407973893,1772955043650,-5439.00311301,4.75e-05,2]
[407973896,1772955043662,-2920.64183032,4.75e-05,2]
[407973898,1772955043673,-284.64068081,4.75e-05,2]
[407973900,1772955043684,-500.0,4.75e-05,2]
[407974200,1772955046651,-686.84806561,4.685e-05,2]
[407974203,1772955046673,-4313.15193439,4.685e-05,2]
[407974205,1772955046683,-5535.34574606,4.75e-05,2]
[407974207,1772955046694,-524.0,4.75e-05,2]
[407974699,1772955368078,153.6953853,2.001e-05,2]
[407974703,1772955483230,251.97,3.8e-06,2]
[407974735,1772956231562,-1252.8188953,4.069e-05,2]
[407975655,1772956245670,-3298.8864978,4.069e-05,2]
[407976909,1772957284243,225.76,3.8e-06,2]
[407977096,1772957437920,-252.77670351,2.959e-05,2]
[407977097,1772957437930,-5000.0,2.989e-05,2]
[407977098,1772957437940,-5000.0,3.019e-05,2]
[407977099,1772957437949,-300.0,3.048e-05,2]
[407977100,1772957437959,-215.49119009,3.064e-05,2]
[407977101,1772957437969,-183.601303,3.08e-05,2]
[407977102,1772957437979,-183.601303,3.404e-05,2]
[407977103,1772957437988,-209.00854989,3.617e-05,2]
[407977104,1772957437997,-183.601303,3.728e-05,2]
[407977105,1772957438006,-500.0,4.043e-05,2]
[407977106,1772957438016,-500.0,4.043e-05,2]
[407977107,1772957438025,-500.0,4.043e-05,2]
[407977108,1772957438034,-500.0,4.043e-05,2]
[407977109,1772957438043,-234.34508509,4.043e-05,2]
[407977110,1772957438055,-265.65491491,4.043e-05,2]
[407977111,1772957438064,-500.0,4.043e-05,2]
[407977112,1772957438074,-500.0,4.043e-05,2]
[407977113,1772957438083,-500.0,4.043e-05,2]
[407977114,1772957438092,-500.0,4.043e-05,2]
[407977115,1772957438102,-500.0,4.043e-05,2]
[407977116,1772957438112,-500.0,4.043e-05,2]
[407977117,1772957438128,-500.0,4.043e-05,2]
[407977118,1772957438137,-500.0,4.043e-05,2]
[407977119,1772957438148,-500.0,4.043e-05,2]
[407977120,1772957438157,-351.0,4.069e-05,2]
[407977121,1772957438166,-351.0,4.069e-05,2]
[407977122,1772957438175,-351.0,4.069e-05,2]
[407977123,1772957438185,-351.0,4.069e-05,2]
[407977124,1772957438195,-351.0,4.069e-05,2]
[407977125,1772957438206,-351.0,4.069e-05,2]
[407977126,1772957438216,-351.0,4.069e-05,2]
[407977127,1772957438226,-351.0,4.069e-05,2]
[407977128,1772957438237,-351.0,4.069e-05,2]
[407977129,1772957438247,-351.0,4.069e-05,2]
[407977130,1772957438257,-343.07124262,4.069e-05,2]
[407977131,1772957438270,-7.92875738,4.069e-05,2]
[407977132,1772957438279,-351.0,4.069e-05,2]
[407977133,1772957438288,-351.0,4.069e-05,2]
[407977134,1772957438298,-277.69953663,4.069e-05,2]
[407977135,1772957438310,-73.30046337,4.069e-05,2]
[407977136,1772957438319,-351.0,4.069e-05,2]
[407977137,1772957438329,-351.0,4.069e-05,2]
[407977138,1772957438339,-351.0,4.069e-05,2]
[407977139,1772957438349,-351.0,4.069e-05,2]
[407977140,1772957438360,-200.31569652,4.069e-05,2]
[407977141,1772957438371,-150.68430348,4.069e-05,2]
[407977142,1772957438380,-351.0,4.069e-05,2]
[407977143,1772957438389,-351.0,4.069e-05,2]
[407977144,1772957438399,-351.0,4.069e-05,2]
[407977145,1772957438408,-351.0,4.069e-05,2]
[407977146,1772957438417,-351.0,4.069e-05,2]
[407977147,1772957438426,-351.0,4.069e-05,2]
[407977148,1772957438435,-351.0,4.069e-05,2]
[407977149,1772957438444,-351.0,4.069e-05,2]
[407977150,1772957438454,-351.0,4.069e-05,2]
[407977151,1772957438463,-351.0,4.069e-05,2]
[407977152,1772957438472,-351.0,4.069e-05,2]
[407977153,1772957438481,-243.95614499,4.069e-05,2]
[407977154,1772957438490,-166.0,4.069e-05,2]
[407977155,1772957438499,-689.0,4.069e-05,2]
[407977156,1772957438509,-166.0,4.069e-05,2]
[407977157,1772957438518,-689.0,4.069e-05,2]
[407977158,1772957438527,-166.0,4.069e-05,2]
[407977159,1772957438536,-351.0,4.069e-05,2]
[407977160,1772957438545,-689.0,4.069e-05,2]
[407977161,1772957438555,-172.0,4.069e-05,2]
[407977162,1772957438564,-166.0,4.069e-05,2]
[407977163,1772957438574,-166.0,4.069e-05,2]
[407977164,1772957438583,-351.0,4.069e-05,2]
[407977165,1772957438592,-125.42961143,4.069e-05,2]
[407977177,1772957440232,-563.57038857,4.069e-05,2]
[407977178,1772957440244,-172.0,4.069e-05,2]
[407977179,1772957440254,-166.0,4.069e-05,2]
[407977180,1772957440264,-351.0,4.069e-05,2]
[407977181,1772957440274,-166.0,4.069e-05,2]
[407977182,1772957440283,-689.0,4.069e-05,2]
[407977183,1772957440292,-166.0,4.069e-05,2]
[407977184,1772957440302,-166.0,4.069e-05,2]
[407977185,1772957440311,-689.0,4.069e-05,2]
[407977186,1772957440321,-266.89811313,4.069e-05,2]
[407977187,1772957440330,-351.0,4.069e-05,2]
[407977188,1772957440341,-689.0,4.069e-05,2]
[407977189,1772957440351,-351.0,4.069e-05,2]
[407977190,1772957440362,-689.0,4.069e-05,2]
[407977191,1772957440373,-351.0,4.069e-05,2]
[407977192,1772957440382,-351.0,4.069e-05,2]
[407977193,1772957440391,-689.0,4.069e-05,2]
[407977194,1772957440402,-351.0,4.069e-05,2]
[407977195,1772957440414,-161.08084231,4.069e-05,2]
[407977196,1772957440426,-527.91915769,4.069e-05,2]
[407977197,1772957440435,-351.0,4.069e-05,2]
[407977198,1772957440443,-689.0,4.069e-05,2]
[407977199,1772957440452,-689.0,4.069e-05,2]
[407977200,1772957440462,-689.0,4.069e-05,2]
[407977201,1772957440472,-689.0,4.069e-05,2]
[407977202,1772957440482,-689.0,4.069e-05,2]
[407977203,1772957440491,-155.0,4.069e-05,2]
[407977204,1772957440500,-689.0,4.069e-05,2]
[407977205,1772957440510,-338.0,4.069e-05,2]
[407977206,1772957440520,-155.0,4.069e-05,2]
[407977207,1772957440530,-689.0,4.069e-05,2]
[407977208,1772957440539,-338.0,4.069e-05,2]
[407977209,1772957440549,-155.0,4.069e-05,2]
[407977210,1772957440559,-351.0,4.069e-05,2]
[407977211,1772957440569,-351.0,4.069e-05,2]
[407977212,1772957440579,-351.0,4.069e-05,2]
[407977213,1772957440589,-351.0,4.069e-05,2]
[407977214,1772957440598,-351.0,4.069e-05,2]
[407977215,1772957440607,-351.0,4.069e-05,2]
[407977216,1772957440616,-338.0,4.069e-05,2]
[407977217,1772957440626,-689.0,4.069e-05,2]
[407977218,1772957440635,-338.0,4.069e-05,2]
[407977219,1772957440644,-169.5647597,4.069e-05,2]
[407977220,1772957440653,-351.0,4.069e-05,2]
[407977221,1772957440662,-689.0,4.069e-05,2]
[407977222,1772957440671,-689.0,4.069e-05,2]
[407977223,1772957440680,-351.0,4.069e-05,2]
[407977224,1772957440689,-689.0,4.069e-05,2]
[407977225,1772957440698,-351.0,4.069e-05,2]
[407977226,1772957440708,-689.0,4.069e-05,2]
[407977227,1772957440717,-351.0,4.069e-05,2]
[407977228,1772957440726,-689.0,4.069e-05,2]
[407977229,1772957440735,-351.0,4.069e-05,2]
[407977230,1772957440744,-689.0,4.069e-05,2]
[407977231,1772957440753,-351.0,4.069e-05,2]
[407977232,1772957440762,-689.0,4.069e-05,2]
[407977233,1772957440771,-351.0,4.069e-05,2]
[407977234,1772957440780,-689.0,4.069e-05,2]
[407977235,1772957440790,-351.0,4.069e-05,2]
[407977236,1772957440800,-351.0,4.069e-05,2]
[407977237,1772957440809,-689.0,4.069e-05,2]
[407977238,1772957440818,-351.0,4.069e-05,2]
[407977239,1772957440827,-689.0,4.069e-05,2]
[407977240,1772957440836,-338.0,4.069e-05,2]
[407977241,1772957440845,-338.0,4.069e-05,2]
[407977242,1772957440854,-338.0,4.069e-05,2]
[407977243,1772957440863,-338.0,4.069e-05,2]
[407977244,1772957440872,-338.0,4.069e-05,2]
[407977245,1772957440881,-689.0,4.069e-05,2]
[407977246,1772957440891,-338.0,4.069e-05,2]
[407977247,1772957440903,-689.0,4.069e-05,2]
[407977248,1772957440913,-338.0,4.069e-05,2]
[407977249,1772957440921,-338.0,4.069e-05,2]
[407977250,1772957440930,-689.0,4.069e-05,2]
[407977251,1772957440939,-338.0,4.069e-05,2]
[407977252,1772957440949,-689.0,4.069e-05,2]
[407977253,1772957440959,-338.0,4.069e-05,2]
[407977254,1772957440971,-689.0,4.069e-05,2]
[407977255,1772957440980,-338.0,4.069e-05,2]
[407977256,1772957440990,-689.0,4.069e-05,2]
[407977257,1772957440999,-338.0,4.069e-05,2]
[407977258,1772957441008,-689.0,4.069e-05,2]
[407977259,1772957441018,-338.0,4.069e-05,2]
[407977260,1772957441027,-689.0,4.069e-05,2]
[407977261,1772957441036,-338.0,4.069e-05,2]
[407977262,1772957441046,-521.74518032,4.069e-05,2]
[407977263,1772957441060,-167.25481968,4.069e-05,2]
[407977264,1772957441070,-338.0,4.069e-05,2]
[407977265,1772957441079,-469.74518032,4.069e-05,2]
[407977280,1772957442974,-219.25481968,4.069e-05,2]
[407977281,1772957442983,-338.0,4.069e-05,2]
[407977282,1772957442993,-689.0,4.069e-05,2]
[407977283,1772957443003,-338.0,4.069e-05,2]
[407977284,1772957443013,-338.0,4.069e-05,2]
[407977285,1772957443023,-689.0,4.069e-05,2]
[407977286,1772957443032,-338.0,4.069e-05,2]
[407977287,1772957443045,-689.0,4.069e-05,2]
[407977288,1772957443055,-338.0,4.069e-05,2]
[407977289,1772957443064,-23.74518032,4.069e-05,2]
[407977290,1772957443076,-665.25481968,4.069e-05,2]
[407977291,1772957443085,-338.0,4.069e-05,2]
[407977292,1772957443094,-47.25929175,4.069e-05,2]
[407977294,1772957445922,-3824.04435335,4.028e-05,2]
[407977295,1772957445932,-641.74070825,4.069e-05,2]
[407977296,1772957445942,-338.0,4.069e-05,2]
[407977297,1772957445952,-689.0,4.069e-05,2]
[407977298,1772957445963,-32.66924825,4.069e-05,2]
[407977299,1772957445985,-305.33075175,4.069e-05,2]
[407977300,1772957445996,-338.0,4.069e-05,2]
[407977301,1772957446005,-689.0,4.069e-05,2]
[407977302,1772957446014,-338.0,4.069e-05,2]
[407977303,1772957446023,-689.0,4.069e-05,2]
[407977304,1772957446033,-689.0,4.069e-05,2]
[407977305,1772957446042,-689.0,4.069e-05,2]
[407977306,1772957446052,-689.0,4.069e-05,2]
[407977307,1772957446062,-338.0,4.069e-05,2]
[407977308,1772957446072,-689.0,4.069e-05,2]
[407977309,1772957446081,-338.0,4.069e-05,2]
[407977310,1772957446091,-689.0,4.069e-05,2]
[407977311,1772957446099,-338.0,4.069e-05,2]
[407977312,1772957446110,-653.03869316,4.069e-05,2]
[407977401,1772958632046,-4490.30275671,2.633e-05,2]
[407977402,1772958632056,-279.42143484,2.66e-05,2]
[407977415,1772958638757,-2525.36643003,2.66e-05,2]
[407977416,1772958638768,-886.0,2.66e-05,2]
[407977417,1772958638780,-253.19172798,2.66e-05,2]
[407977424,1772958640606,-180.0647605,2.66e-05,2]
[407977426,1772958640616,-200.29777837,2.687e-05,2]
[407977428,1772958640628,-1719.26634701,2.687e-05,2]
[407977429,1772958640639,-3080.43587462,2.687e-05,2]
[407977430,1772958640648,-216.17014732,2.728e-05,2]
[407977431,1772958640657,-300.0,2.744e-05,2]
[407977432,1772958640666,-1000.0,2.745e-05,2]
[407977433,1772958640675,-75.63281896,3.156e-05,2]
[407977442,1772958643395,-491.04939334,3.156e-05,2]
[407977443,1772958643406,-151.0,4.042e-05,2]
[407977444,1772958643415,-151.0,4.042e-05,2]
[407977445,1772958643425,-151.0,4.042e-05,2]
[407977446,1772958643435,-500.0,4.043e-05,2]
[407977447,1772958643444,-500.22545745,4.043e-05,2]
[407977448,1772958643463,-500.27145409,4.043e-05,2]
[407977449,1772958643479,-500.0,4.043e-05,2]
[407977450,1772958643489,-500.0,4.043e-05,2]
[407977451,1772958643501,-500.0,4.043e-05,2]
[407977452,1772958643512,-500.0,4.043e-05,2]
[407977453,1772958643523,-500.0,4.043e-05,2]
[407977454,1772958643534,-500.0,4.043e-05,2]
[407977455,1772958643545,-500.0,4.043e-05,2]
[407977456,1772958643556,-500.0,4.043e-05,2]
[407977457,1772958643566,-500.0,4.043e-05,2]
[407977458,1772958643576,-500.0,4.043e-05,2]